Workbook

Sheet Summary Sheet for E-8
A1: OPC 015242
A2: FPL RC-16
A4: Clause Revenues by Rate Class for E-8 (Source: Clauses for E-8 Based on NOI)
F5: 2017 | G5: 2018
A6: Rate Class | B6: 2017 | C6: 2018 | F6: Sales FC | G6: Sales FC
A7: CILC-1D | B7: =('Projected Clauses 2017'!$L$17)*(F7/(F7+F8)) -> 110216025.7 | C7: =('Projected Clauses 2018'!$L$17)*(G7/(G7+G8)) -> 115009352.8 | F7: 2687420391 | G7: 2686957625
A8: CILC-1G | B8: =('Projected Clauses 2017'!$L$17)*(F8/($F$7+$F$8)) -> 4167765.693 | C8: =('Projected Clauses 2018'!$L$17)*(G8/($G$7+$G$8)) -> 4344851.144 | F8: 101623502 | G8: 101508535
A9: CILC-1T | B9: ='Projected Clauses 2017'!L18 -> 60677922.39 | C9: ='Projected Clauses 2018'!L18 -> 64417931.69 | F9: 1508335314 | G9: 1532421391
A10: GS(T)-1 | B10: ='Projected Clauses 2017'!L9 -> 257107516.9 | C10: ='Projected Clauses 2018'!L9 -> 268699438.2 | F10: 5968792122 | G10: 6001791085
A11: GSCU-1 | B11: ='Projected Clauses 2017'!$L$21*(F11/($F$11+$F$21)) -> 2862660.652 | C11: ='Projected Clauses 2018'!$L$21*(G11/($G$11+$G$21)) -> 3025701.136 | F11: 70241818 | G11: 71082174
A12: GSD(T)-1 | B12: ='Projected Clauses 2017'!L10 -> 1088961735 | C12: ='Projected Clauses 2018'!L10 -> 1139148192 | F12: 25825428784 | G12: 25949742256
A13: GSLD(T)-1 | B13: ='Projected Clauses 2017'!L12 -> 442230870.5 | C13: ='Projected Clauses 2018'!L12 -> 462823846.6 | F13: 10507497706 | G13: 10561627481
A14: GSLD(T)-2 | B14: ='Projected Clauses 2017'!L13 -> 103114921.9 | C14: ='Projected Clauses 2018'!L13 -> 107448764.1 | F14: 2515470925 | G14: 2511431587
A15: GSLD(T)-3 | B15: ='Projected Clauses 2017'!L14 -> 6994179.404 | C15: ='Projected Clauses 2018'!L14 -> 7421866.02 | F15: 172992260 | G15: 175782528
A16: MET | B16: ='Projected Clauses 2017'!L19 -> 3842212.803 | C16: ='Projected Clauses 2018'!L19 -> 4002358.279 | F16: 91208296 | G16: 91241144
A17: OL-1 | B17: ='Projected Clauses 2017'!$L$20*(F17/($F$17+$F$20)) -> 4592785.266 | C17: ='Projected Clauses 2018'!$L$20*(G17/($G$17+$G$20)) -> 4777183.454 | F17: 97899984 | G17: 97314768
A18: OS-2 | B18: ='Projected Clauses 2017'!L11 -> 494478.0555 | C18: ='Projected Clauses 2018'!L11 -> 515905.7154 | F18: 10793313 | G18: 10819466
A19: RS(T)-1 | B19: ='Projected Clauses 2017'!L8 -> 2491313329 | C19: ='Projected Clauses 2018'!L8 -> 2602418790 | F19: 56993678507 | G19: 57361215879
A20: SL-1 | B20: ='Projected Clauses 2017'!$L$20*(F20/($F$17+$F$20)) -> 26309155.82 | C20: ='Projected Clauses 2018'!$L$20*(G20/($G$17+$G$20)) -> 28028448.12 | F20: 560806958 | G20: 570960264
A21: SL-2 | B21: ='Projected Clauses 2017'!$L$21*(F21/($F$11+$F$21)) -> 1335220.001 | C21: ='Projected Clauses 2018'!$L$21*(G21/($G$11+$G$21)) -> 1424066.961 | F21: 32762626 | G21: 33455312
A22: SST-DST | B22: ='Projected Clauses 2017'!L16 -> 869455.9564 | C22: ='Projected Clauses 2018'!L16 -> 860801.6157 | F22: 11856926 | G22: 11856926
A23: SST-TST | B23: ='Projected Clauses 2017'!L15 -> 3204722.526 | C23: ='Projected Clauses 2018'!L15 -> 3399965.417 | F23: 89667754 | G23: 89667754
B25: =SUM(B7:B23) -> 4608294958 | C25: =SUM(C7:C23) -> 4817767463 | F25: =SUM(F7:F23) -> 107246477186 | G25: =SUM(G7:G23) -> 107858876175

Sheet Projected Clauses 2017
A1: OPC 015243
A2: FPL RC-16
M4: Check Back
M5: to E-8 | P5: Storm Charge Calculation:
D6: Allocated on Sales | E6: Based on Projected 2017 Clause Allocations | F6: Based on Projected 2017 Clause Allocations - less reclassed CILC/CDR Credits | G6: Based on Projected 2017 Clause Allocations | H6: Allocated based on March 2016 Storm Rate Allocations and 2017 Sales Forecast | I6: Allocated Based on Total Clause Revenues | J6: Allocated Based on Total Clause Revenues + GRT | M6: 000s
B7: 2017 Forecasted Period Sales | C7: 2017 Forecasted Operating Base Revenues per MFR E-1 | D7: 2017 Projected Fuel Clause Revenue | E7: 2017 Projected Capacity Clause Revenue | F7: 2017 Projected Energy Conservation Clause Revenue for E-8 | G7: 2017 Projected Environmental Clause Revenue | H7: 2017 Projected Storm Clause Revenue | I7: 2017 Projected GRT Revenue | J7: 2017 Projected Franchise Revenue | L7: Total 2017 Projected Clause and Storm Revenue | M7: Total 2017 Projected Clause and Storm Revenues (Base & Clause | P7: Rate Classes for Storm Filings | Q7: Current Storm Rates (Effective March 1, 2016) | R7: 2017 Forecasted Sales | S7: Storm Revenues based on 2016 Rates & 2017 Sales | T7: Strom Revenues using Projected Storm Revenue Forecast
A8: RS1/RTR1 | B8: ='[22]Forecast Summ by RC kWh'!C16 -> 56993678507 | C8: ='[22]E-8 Parity Analysis Final'!$C$24*1000 -> 3652240399 | D8: =$B8/$B$23*D$23 -> 1682164366 | E8: ='[23]2017 Capacity Calc'!T7 -> 191468450 | F8: =T29 -> 40751726.3 | G8: ='[24]FORMS 42-6P, 42-7P '!W16 -> 121968984 | H8: =T8 -> 72416820.52 | I8: =(SUM(D8:H8)/SUM($C$24:$H$24))*$I$23 -> 132475858.7 | J8: =(SUM(D8:I8)/SUM($C$24:$I$24))*$J$23 -> 250067123.8 | L8: =SUM(D8:J8) -> 2491313329 | M8: =C8+L8 -> 6143553728 | P8: RS1/RTR1 | Q8: 0.00134 | R8: ='[22]Forecast Summ by RC kWh'!C16 -> 56993678507 | S8: =Q8*R8 -> 76371529.2 | T8: =$T$25*(S8/$S$24) -> 72416820.52
A9: GS1/GST1 | B9: ='[22]Forecast Summ by RC kWh'!C7 -> 5968792122 | C9: ='[22]E-8 Parity Analysis Final'!$C$15*1000 -> 381519718.5 | D9: =B9/$B$23*$D$23 -> 176168474.8 | E9: ='[23]2017 Capacity Calc'!T8 -> 18658538 | F9: =T30 -> 4050822.262 | G9: ='[24]FORMS 42-6P, 42-7P '!W17 -> 11958979 | H9: =T9 -> 6791655.776 | I9: =(SUM(D9:H9)/SUM($D$24:$H$24))*$I$23 -> 13671720.32 | J9: =(SUM(D9:I9)/SUM($D$24:$I$24))*$J$23 -> 25807326.81 | L9: =SUM(D9:J9) -> 257107516.9 | M9: =C9+L9 -> 638627235.4 | P9: GS1/GST1 | Q9: 0.0012 | R9: ='[22]Forecast Summ by RC kWh'!C7 -> 5968792122 | S9: =Q9*R9 -> 7162550.546 | T9: =$T$25*(S9/$S$24) -> 6791655.776
A10: GSD1/GSDT1/HLFT1 (21-499 kW)/SDTR 1A/SDTR 1B | B10: ='[22]Forecast Summ by RC kWh'!C9 -> 25825428784 | C10: ='[22]E-8 Parity Analysis Final'!$C$17*1000 -> 1161081744 | D10: 762235693 | E10: ='[23]2017 Capacity Calc'!T9 -> 74272988 | F10: 16520932.05 | G10: ='[24]FORMS 42-6P, 42-7P '!W18 -> 47906347 | H10: 20814905 | I10: 57905659.34 | J10: 109305211 | L10: 1088961735 | M10: 2250043479 | P10: GSD1/GSDT1/HLFT1 (21-499 kW)/SDTR 1A/SDTR 1B | Q10: 0.00085 | R10: ='[22]Forecast Summ by RC kWh'!C9 -> 25825428784 | S10: 21951614.47 | T10: 20814905
A11: OS2 | B11: ='[22]Forecast Summ by RC kWh'!C15 -> 10793313 | C11: ='[22]E-8 Parity Analysis Final'!$C$23*1000 -> 1027155.383 | D11: 318563.8652 | E11: ='[23]2017 Capacity Calc'!T10 -> 25966 | F11: 6070.467013 | G11: ='[24]FORMS 42-6P, 42-7P '!W19 -> 17904 | H11: 50046.25646 | I11: 26293.92466 | J11: 49633.54214 | L11: 494478.0555 | M11: 1521633.439 | P11: OS2 | Q11: 0.00489 | R11: ='[22]Forecast Summ by RC kWh'!C15 -> 10793313 | S11: 52779.30057 | T11: 50046.25646
A12: GSLD1/GSLDT1/CS1/CST1/HLFT2 (500-1,999 kW)/SDTR 2A/SDTR 2B | B12: ='[22]Forecast Summ by RC kWh'!C10 -> 10507497706 | C12: ='[22]E-8 Parity Analysis Final'!$C$18*1000 -> 389309710.7 | D12: 310128047.1 | E12: ='[23]2017 Capacity Calc'!T11 -> 30042267 | F12: 6692767.516 | G12: ='[24]FORMS 42-6P, 42-7P '!W20 -> 19392567 | H12: 8070348.501 | I12: 23515674.89 | J12: 44389198.47 | L12: 442230870.5 | M12: 831540581.2 | P12: GSLD1/GSLDT1/CS1/CST1/HLFT2 (500-1,999 kW)/SDTR 2A/SDTR 2B | Q12: 0.00081 | R12: ='[22]Forecast Summ by RC kWh'!C10 -> 10507497706 | S12: 8511073.142 | T12: 8070348.501
A13: GSLD2/GSLDT2/CS2/CST2/HLFT3(2,000+ kW)/SDTR 3A/SDTR 3B | B13: ='[22]Forecast Summ by RC kWh'!C11 -> 2515470925 | C13: ='[22]E-8 Parity Analysis Final'!$C$19*1000 -> 79999169.6 | D13: 74243945.36 | E13: ='[23]2017 Capacity Calc'!T12 -> 6284425 | F13: 1457829.181 | G13: ='[24]FORMS 42-6P, 42-7P '!W21 -> 4102744 | H13: 1192606.776 | I13: 5483147.249 | J13: 10350224.38 | L13: 103114921.9 | M13: 183114091.5 | P13: GSLD2/GSLDT2/CS2/CST2/HLFT3(2,000+ kW)/SDTR 3A/SDTR 3B | Q13: 0.0005 | R13: ='[22]Forecast Summ by RC kWh'!C11 -> 2515470925 | S13: 1257735.463 | T13: 1192606.776
A14: GSLD3/GSLDT3/CS3/CST3 | B14: ='[22]Forecast Summ by RC kWh'!C12 -> 172992260 | C14: ='[22]E-8 Parity Analysis Final'!$C$20*1000 -> 4621044.8 | D14: 5105854.245 | E14: ='[23]2017 Capacity Calc'!T13 -> 425012 | F14: 98376.05751 | G14: ='[24]FORMS 42-6P, 42-7P '!W22 -> 277853 | H14: 13122.74307 | I14: 371916.2545 | J14: 702045.1046 | L14: 6994179.404 | M14: 11615224.2 | P14: GSLD3/GSLDT3/CS3/CST3 | Q14: 8e-05 | R14: ='[22]Forecast Summ by RC kWh'!C12 -> 172992260 | S14: 13839.3808 | T14: 13122.74307
A15: SST1T | B15: ='[22]Forecast Summ by RC kWh'!C20 -> 89667754 | C15: ='[22]E-8 Parity Analysis Final'!$C$28*1000 -> 4433565.763 | D15: 2646537.379 | E15: ='[23]2017 Capacity Calc'!T14 -> 31511 | F15: 7133.698646 | G15: ='[24]FORMS 42-6P, 42-7P '!W23 -> 20651 | H15: 6801.962685 | I15: 170411.4707 | J15: 321676.0153 | L15: 3204722.526 | M15: 7638288.29 | P15: SST1T | Q15: 8e-05 | R15: ='[22]Forecast Summ by RC kWh'!C20 -> 89667754 | S15: 7173.42032 | T15: 6801.962685
A16: SST1D1/SST1D2/SST1D3 | B16: ='[22]Forecast Summ by RC kWh'!C19 -> 11856926 | C16: ='[22]E-8 Parity Analysis Final'!$C$27*1000 -> 822548.8236 | D16: 349956.3272 | E16: ='[23]2017 Capacity Calc'!T15 -> 189998 | F16: 46272.87219 | G16: ='[24]FORMS 42-6P, 42-7P '!W24 -> 129261 | H16: 20462.15942 | I16: 46233.41554 | J16: 87272.18199 | L16: 869455.9564 | M16: 1692004.78 | P16: SST1D1/SST1D2/SST1D3 | Q16: 0.00182 | R16: ='[22]Forecast Summ by RC kWh'!C19 -> 11856926 | S16: 21579.60532 | T16: 20462.15942
A17: CILC D/CILC G | B17: ='[22]Forecast Summ by RC kWh'!C4+'[22]Forecast Summ by RC kWh'!C5 -> 2789043893 | C17: =('[22]E-8 Parity Analysis Final'!$C$12+'[22]E-8 Parity Analysis Final'!$C$13)*1000 -> 93601980.86 | D17: 82318432.05 | E17: ='[23]2017 Capacity Calc'!T16 -> 6978663 | F17: 1617747.492 | G17: ='[24]FORMS 42-6P, 42-7P '!W25 -> 4553052 | H17: =T17+T18 -> 1352182.081 | I17: 6082370.613 | J17: 11481344.15 | L17: 114383791.4 | M17: 207985772.2 | P17: CILC G | Q17: 0.00081 | R17: ='[22]Forecast Summ by RC kWh'!C5 -> 101623502 | S17: 82315.03662 | T17: 78052.55827
A18: CILC T | B18: ='[22]Forecast Summ by RC kWh'!$C$6 -> 1508335314 | C18: ='[22]E-8 Parity Analysis Final'!$C$14*1000 -> 36307353.9 | D18: 44518409.47 | E18: ='[23]2017 Capacity Calc'!T17 -> 3560693 | F18: 835161.1946 | G18: ='[24]FORMS 42-6P, 42-7P '!W26 -> 2332101 | H18: =T19 -> 114418.3953 | I18: 3226555.157 | J18: 6090584.171 | L18: 60677922.39 | M18: 96985276.28 | P18: CILC D | Q18: 0.0005 | R18: ='[22]Forecast Summ by RC kWh'!C4 -> 2687420391 | S18: 1343710.195 | T18: 1274129.523
A19: MET | B19: ='[22]Forecast Summ by RC kWh'!C13 -> 91208296 | C19: ='[22]E-8 Parity Analysis Final'!$C$21*1000 -> 4161010.871 | D19: 2692006.367 | E19: ='[23]2017 Capacity Calc'!T18 -> 258369 | F19: 57365.08053 | G19: ='[24]FORMS 42-6P, 42-7P '!W27 -> 166661 | H19: =T20 -> 77836.77221 | I19: 204310.0859 | J19: 385664.4981 | L19: 3842212.803 | M19: 8003223.675 | P19: CILC T | Q19: 8e-05 | R19: ='[22]Forecast Summ by RC kWh'!$C$6 -> 1508335314 | S19: 120666.8251 | T19: 114418.3953
A20: OL1/SL1/PL1 | B20: ='[22]Forecast Summ by RC kWh'!C14+'[22]Forecast Summ by RC kWh'!C17 -> 658706942 | C20: =('[22]E-8 Parity Analysis Final'!$C$22+'[22]E-8 Parity Analysis Final'!$C$25)*1000 -> 107255997.6 | D20: 19441688.52 | E20: ='[23]2017 Capacity Calc'!T19 -> 683363 | F20: 232799.3745 | G20: ='[24]FORMS 42-6P, 42-7P '!W28 -> 524435 | H20: =T21+T22 -> 5274639.552 | I20: 1643214.096 | J20: 3101801.542 | L20: 30901941.09 | M20: 138157938.6 | P20: MET | Q20: 0.0009 | R20: ='[22]Forecast Summ by RC kWh'!C13 -> 91208296 | S20: 82087.4664 | T20: 77836.77221
A21: SL2, GSCU1 | B21: ='[22]Forecast Summ by RC kWh'!C18+'[22]Forecast Summ by RC kWh'!C8 -> 103004444 | C21: =('[22]E-8 Parity Analysis Final'!$C$26+'[22]E-8 Parity Analysis Final'!$C$16)*1000 -> 5823662.058 | D21: 3040168.835 | E21: ='[23]2017 Capacity Calc'!T20 -> 245374 | F21: 57974.86724 | G21: ='[24]FORMS 42-6P, 42-7P '!W29 -> 160940 | H21: =T23 -> 48835.30821 | I21: 223222.7627 | J21: 421364.8795 | L21: =SUM(D21:J21) -> 4197880.653 | M21: 10021542.71 | P21: SL1/PL1 | Q21: 0.00843 | R21: ='[22]Forecast Summ by RC kWh'!C17 -> 560806958 | S21: 4727602.656 | T21: 4482795.573
P22: OL | Q22: 0.00853 | R22: ='[22]Forecast Summ by RC kWh'!C14 -> 97899984 | S22: 835086.8635 | T22: 791843.9784
A23: Total | B23: =SUM(B8:B21) -> 107246477186 | C23: =SUM(C8:C21) -> 5922205062 | D23: =B33 -> 3165372143 | E23: =B34 -> 333125619.2 | F23: =B36+B37 -> 72432979.4 | G23: =B35 -> 213512478.9 | H23: =B38 -> 116244681.8 | I23: =B40 -> 245046588.2 | J23: =B39 -> 462560470.5 | L23: =B41 -> 4608294961 | M23: =SUM(M8:M21) -> 1.053050002e+10 | P23: SL2, GSCU1 | Q23: 0.0005 | R23: ='[22]Forecast Summ by RC kWh'!$C$18+'[22]Forecast Summ by RC kWh'!$C$8 -> 103004444 | S23: 51502.222 | T23: 48835.30821
D24: =SUM(D8:D21) -> 3165372143 | E24: 333125617 | F24: =SUM(F8:F21) -> 72432978.41 | G24: =SUM(G8:G21) -> 213512479 | H24: 116244681.8 | I24: 245046588.2 | J24: 462560470.5 | L24: =SUM(L8:L21) -> 4608294958 | R24: =SUM(R8:R23) -> 107246477186 | S24: =SUM(S8:S23) -> 122592845.8 | T24: =SUM(T8:T23) -> 116244681.8
T25: =B38 -> 116244681.8
P27: Conservation Calculations (to remove CDR/CILC Credits Reclassed to Base):
R28: 2017 Projected Energy Conservation Clause Revenue | S28: Removed CILC/CDR Credits reclassed to Base | T28: 2017 Projected Energy Conservation Clause Revenue for E-8
A29: Clause Revenue Requiremenets Provided by Jason Chin & Craig Martin: | P29: RS1/RTR1 | R29: ='[25]page 2& 3'!W11 -> 75851455 | S29: =$S$45*(R29/$R$44) -> -35099728.7 | T29: =R29+S29 -> 40751726.3
P30: GS1/GST1 | R30: ='[25]page 2& 3'!W12 -> 7539822 | S30: =$S$45*(R30/$R$44) -> -3488999.738 | T30: =R30+S30 -> 4050822.262
P31: GSD1/GSDT1/HLFT1 (21-499 kW)/SDTR 1A/SDTR 1B | R31: ='[25]page 2& 3'!W13 -> 30750519 | S31: -14229586.95 | T31: 16520932.05
B32: 2017 Revenue Requirements (per NOI) | P32: OS2 | R32: ='[25]page 2& 3'!W14 -> 11299 | S32: -5228.532987 | T32: 6070.467013
A33: Fuel | B33: ='[26]Summary of Clause Balances'!$B$2 -> 3165372143 | P33: GSLD1/GSLDT1/CS1/CST1/HLFT2 (500-1,999 kW)/SDTR 2A/SDTR 2B | R33: ='[25]page 2& 3'!W15 -> 12457292 | S33: -5764524.484 | T33: 6692767.516
A34: Capacity | B34: ='[26]Summary of Clause Balances'!$B$3 -> 333125619.2 | P34: GSLD2/GSLDT2/CS2/CST2/HLFT3(2,000+ kW)/SDTR 3A/SDTR 3B | R34: ='[25]page 2& 3'!W16 -> 2713467 | S34: -1255637.819 | T34: 1457829.181
A35: Environmental | B35: ='[26]Summary of Clause Balances'!$B$6 -> 213512478.9 | P35: GSLD3/GSLDT3/CS3/CST3 | R35: ='[25]page 2& 3'!W17 -> 183108 | S35: -84731.94249 | T35: 98376.05751
A36: Conservation | B36: ='[26]Summary of Clause Balances'!$B$4 -> 134819978 | P36: SST1T | R36: ='[25]page 2& 3'!W18 -> 13278 | S36: -6144.301354 | T36: 7133.698646
A37: CILC Credits reclassed to Base | B37: ='[26]Summary of Clause Balances'!$B$5 -> -62386998.59 | P37: SST1D1/SST1D2/SST1D3 | R37: ='[25]page 2& 3'!W19 -> 86128 | S37: -39855.12781 | T37: 46272.87219
A38: Storm | B38: ='[26]Summary of Clause Balances'!$B$9 -> 116244681.8 | P38: CILC D/CILC G | R38: ='[25]page 2& 3'!W20 -> 3011124 | S38: -1393376.508 | T38: 1617747.492
A39: Franchise Fees | B39: ='[26]Summary of Clause Balances'!$B$8 -> 462560470.5 | P39: CILC T | R39: ='[25]page 2& 3'!W21 -> 1554491 | S39: -719329.8054 | T39: 835161.1946
A40: GRT | B40: ='[26]Summary of Clause Balances'!$B$7 -> 245046588.2 | P40: MET | R40: ='[25]page 2& 3'!W22 -> 106774 | S40: -49408.91947 | T40: 57365.08053
B41: =SUM(B33:B40) -> 4608294961 | P41: OL1/SL1/PL1 | R41: ='[25]page 2& 3'!W23 -> 433311 | S41: -200511.6255 | T41: 232799.3745
P42: SL2, GSCU1 | R42: ='[25]page 2& 3'!W24 -> 107909 | S42: -49934.13276 | T42: 57974.86724
P44: Total | R44: =SUM(R29:R42) -> 134819977 | S44: =SUM(S29:S42) -> -62386998.59 | T44: =SUM(T29:T42) -> 72432978.41
S45: =B37 -> -62386998.59

Sheet Projected Clauses 2018
A1: OPC 015244
A2: FPL RC-16
M4: Check Back
M5: to E-8 | P5: Storm Charge Calculation:
D6: Allocated on Sales | E6: Based on Projected 2017 Clause Allocations | F6: Based on Projected 2017 Clause Allocations - less reclassed CILC/CDR Credits | G6: Based on Projected 2017 Clause Allocations | H6: Allocated based on March 2016 Storm Rate Allocations and 2017 Sales Forecast | I6: Allocated Based on Total Clause Revenues | J6: Allocated Based on Total Clause Revenues + GRT | M6: 000s
B7: 2018 Forecasted Period Sales | C7: 2018 Forecasted Operating Base Revenues per MFR E-1 | D7: 2018 Projected Fuel Clause Revenue | E7: 2018 Projected Capacity Clause Revenue | F7: 2018 Projected Energy Conservation Clause Revenue for E-8 | G7: 2018 Projected Environmental Clause Revenue | H7: 2018 Projected Storm Clause Revenue | I7: 2018 Projected GRT Revenue | J7: 2018 Projected Franchise Revenue | L7: Total 2017 Projected Clause and Storm Revenue | M7: Total 2017 Projected Clause and Storm Revenues (Base & Clause | P7: Rate Classes for Storm Filings | Q7: Current Storm Rates (Effective March 1, 2016) | R7: 2018 Forecasted Sales | S7: Storm Revenues based on 2016 Rates & 2018 Sales | T7: Strom Revenues using Projected Storm Revenue Forecast
A8: RS1/RTR1 | B8: ='[27]Forecast Summ by RC kWh'!C16 -> 57361215879 | C8: ='[27]E-8 Parity Analysis (2)'!$C$24*1000 -> 3680682307 | D8: =$B8/$B$23*D$23 -> 1807556255 | E8: ='[23]2018 Capacity Calc'!T7 -> 178160183 | F8: =T29 -> 40308892.66 | G8: ='[28]FORMS 42-6P, 42-7P '!W16 -> 109596102 | H8: =T8 -> 74235913.86 | I8: =(SUM(D8:H8)/SUM($C$24:$H$24))*$I$23 -> 135432589.7 | J8: =(SUM(D8:I8)/SUM($C$24:$I$24))*$J$23 -> 257128853.8 | L8: =SUM(D8:J8) -> 2602418790 | M8: =C8+L8 -> 6283101097 | P8: RS1/RTR1 | Q8: 0.00134 | R8: ='[27]Forecast Summ by RC kWh'!C16 -> 57361215879 | S8: =Q8*R8 -> 76864029.28 | T8: =$T$25*(S8/$S$24) -> 74235913.86
A9: GS1/GST1 | B9: ='[27]Forecast Summ by RC kWh'!C7 -> 6001791085 | C9: ='[27]E-8 Parity Analysis (2)'!$C$15*1000 -> 384085668.3 | D9: =B9/$B$23*$D$23 -> 189127354.6 | E9: ='[23]2018 Capacity Calc'!T8 -> 17345517 | F9: =T30 -> 4003100.905 | G9: ='[28]FORMS 42-6P, 42-7P '!W17 -> 10735647 | H9: =T9 -> 6955895.238 | I9: =(SUM(D9:H9)/SUM($D$24:$H$24))*$I$23 -> 13983399.18 | J9: =(SUM(D9:I9)/SUM($D$24:$I$24))*$J$23 -> 26548524.34 | L9: =SUM(D9:J9) -> 268699438.2 | M9: =C9+L9 -> 652785106.6 | P9: GS1/GST1 | Q9: 0.0012 | R9: ='[27]Forecast Summ by RC kWh'!C7 -> 6001791085 | S9: =Q9*R9 -> 7202149.302 | T9: =$T$25*(S9/$S$24) -> 6955895.238
A10: GSD1/GSDT1/HLFT1 (21-499 kW)/SDTR 1A/SDTR 1B | B10: ='[27]Forecast Summ by RC kWh'!C9 -> 25949742256 | C10: ='[27]E-8 Parity Analysis (2)'!$C$17*1000 -> 1166608342 | D10: 817723582.1 | E10: ='[23]2018 Capacity Calc'!T9 -> 68997149 | F10: 16314689.64 | G10: ='[28]FORMS 42-6P, 42-7P '!W18 -> 42975042 | H10: 21303103.96 | I10: 59282460.75 | J10: 112552165 | L10: 1139148192 | M10: 2305756535 | P10: GSD1/GSDT1/HLFT1 (21-499 kW)/SDTR 1A/SDTR 1B | Q10: 0.00085 | R10: ='[27]Forecast Summ by RC kWh'!C9 -> 25949742256 | S10: 22057280.92 | T10: 21303103.96
A11: OS2 | B11: ='[27]Forecast Summ by RC kWh'!C15 -> 10819466 | C11: ='[27]E-8 Parity Analysis (2)'!$C$23*1000 -> 1028127.012 | D11: 340941.0547 | E11: ='[23]2018 Capacity Calc'!T10 -> 24052 | F11: 5978.746556 | G11: ='[28]FORMS 42-6P, 42-7P '!W19 -> 16014 | H11: 51098.19955 | I11: 26848.27183 | J11: 50973.44279 | L11: 515905.7154 | M11: 1544032.727 | P11: OS2 | Q11: 0.00489 | R11: ='[27]Forecast Summ by RC kWh'!C15 -> 10819466 | S11: 52907.18874 | T11: 51098.19955
A12: GSLD1/GSLDT1/CS1/CST1/HLFT2 (500-1,999 kW)/SDTR 2A/SDTR 2B | B12: ='[29]Forecast Summ by RC kWh'!C10 -> 10561627481 | C12: ='[27]E-8 Parity Analysis (2)'!$C$18*1000 -> 391311626.6 | D12: 332816093.9 | E12: ='[23]2018 Capacity Calc'!T11 -> 27917512 | F12: 6611408.289 | G12: ='[28]FORMS 42-6P, 42-7P '!W20 -> 17401833 | H12: 8262410.662 | I12: 24085835.98 | J12: 45728752.67 | L12: 462823846.6 | M12: 854135473.2 | P12: GSLD1/GSLDT1/CS1/CST1/HLFT2 (500-1,999 kW)/SDTR 2A/SDTR 2B | Q12: 0.00081 | R12: ='[27]Forecast Summ by RC kWh'!C10 -> 10561627481 | S12: 8554918.26 | T12: 8262410.662
A13: GSLD2/GSLDT2/CS2/CST2/HLFT3(2,000+ kW)/SDTR 3A/SDTR 3B | B13: ='[29]Forecast Summ by RC kWh'!C11 -> 2511431587 | C13: ='[27]E-8 Parity Analysis (2)'!$C$19*1000 -> 79877247.03 | D13: 79139777.7 | E13: ='[23]2018 Capacity Calc'!T12 -> 5800800 | F13: 1430433.186 | G13: ='[28]FORMS 42-6P, 42-7P '!W21 -> 3656881 | H13: 1212780.677 | I13: 5591745.817 | J13: 10616345.71 | L13: 107448764.1 | M13: 187326011.1 | P13: GSLD2/GSLDT2/CS2/CST2/HLFT3(2,000+ kW)/SDTR 3A/SDTR 3B | Q13: 0.0005 | R13: ='[27]Forecast Summ by RC kWh'!C11 -> 2511431587 | S13: 1255715.793 | T13: 1212780.677
A14: GSLD3/GSLDT3/CS3/CST3 | B14: ='[29]Forecast Summ by RC kWh'!C12 -> 175782528 | C14: ='[27]E-8 Parity Analysis (2)'!$C$20*1000 -> 4689899.164 | D14: 5539227.213 | E14: ='[23]2018 Capacity Calc'!T13 -> 399236 | F14: 98236.8442 | G14: ='[28]FORMS 42-6P, 42-7P '!W22 -> 252034 | H14: 13581.77731 | I14: 386241.6531 | J14: 733308.5322 | L14: 7421866.02 | M14: 12111765.18 | P14: GSLD3/GSLDT3/CS3/CST3 | Q14: 8e-05 | R14: ='[27]Forecast Summ by RC kWh'!C12 -> 175782528 | S14: 14062.60224 | T14: 13581.77731
A15: SST1T | B15: ='[27]Forecast Summ by RC kWh'!C20 -> 89667754 | C15: ='[27]E-8 Parity Analysis (2)'!$C$28*1000 -> 4435542.814 | D15: 2825594.038 | E15: ='[23]2018 Capacity Calc'!T14 -> 29128 | F15: 7010.994583 | G15: ='[28]FORMS 42-6P, 42-7P '!W23 -> 18437 | H15: 6928.14855 | I15: 176937.7485 | J15: 335929.4877 | L15: 3399965.417 | M15: 7835508.231 | P15: SST1T | Q15: 8e-05 | R15: ='[27]Forecast Summ by RC kWh'!C20 -> 89667754 | S15: 7173.42032 | T15: 6928.14855
A16: SST1D1/SST1D2/SST1D3 | B16: ='[27]Forecast Summ by RC kWh'!C19 -> 11856926 | C16: ='[27]E-8 Parity Analysis (2)'!$C$27*1000 -> 823480.3626 | D16: 373633.3065 | E16: ='[23]2018 Capacity Calc'!T15 -> 175631 | F16: 45472.06707 | G16: ='[28]FORMS 42-6P, 42-7P '!W24 -> 115376 | H16: 20841.76092 | I16: 44797.01441 | J16: 85050.46677 | L16: 860801.6157 | M16: 1684281.978 | P16: SST1D1/SST1D2/SST1D3 | Q16: 0.00182 | R16: ='[27]Forecast Summ by RC kWh'!C19 -> 11856926 | S16: 21579.60532 | T16: 20841.76092
A17: CILC D/CILC G | B17: ='[27]Forecast Summ by RC kWh'!C4+'[27]Forecast Summ by RC kWh'!C5 -> 2788466160 | C17: =('[27]E-8 Parity Analysis (2)'!$C$12+'[27]E-8 Parity Analysis (2)'!$C$13)*1000 -> 93581209.41 | D17: 87869641.03 | E17: ='[23]2018 Capacity Calc'!T16 -> 6450294 | F17: 1589513.663 | G17: ='[28]FORMS 42-6P, 42-7P '!W25 -> 4063836 | H17: =T17+T18 -> 1376953.528 | I17: 6211317.329 | J17: 11792648.35 | L17: 119354203.9 | M17: 212935413.3 | P17: CILC G | Q17: 0.00081 | R17: ='[27]Forecast Summ by RC kWh'!C5 -> 101508535 | S17: 82221.91335 | T17: 79410.60252
A18: CILC T | B18: ='[27]Forecast Summ by RC kWh'!$C$6 -> 1532421391 | C18: ='[27]E-8 Parity Analysis (2)'!$C$14*1000 -> 36661168.14 | D18: 48289385.57 | E18: ='[23]2018 Capacity Calc'!T17 -> 3344144 | F18: 833831.5653 | G18: ='[28]FORMS 42-6P, 42-7P '!W26 -> 2115056 | H18: =T19 -> 118402.0182 | I18: 3352376.392 | J18: 6364736.147 | L18: 64417931.69 | M18: 101079099.8 | P18: CILC D | Q18: 0.0005 | R18: ='[27]Forecast Summ by RC kWh'!C4 -> 2686957625 | S18: 1343478.812 | T18: 1297542.925
A19: MET | B19: ='[27]Forecast Summ by RC kWh'!C13 -> 91241144 | C19: ='[27]E-8 Parity Analysis (2)'!$C$21*1000 -> 4161445.891 | D19: 2875174.419 | E19: ='[23]2018 Capacity Calc'!T18 -> 238927 | F19: 56391.46523 | G19: ='[28]FORMS 42-6P, 42-7P '!W27 -> 148821 | H19: =T20 -> 79309.30493 | I19: 208286.9017 | J19: 395448.1888 | L19: 4002358.279 | M19: 8163804.17 | P19: CILC T | Q19: 8e-05 | R19: ='[27]Forecast Summ by RC kWh'!$C$6 -> 1532421391 | S19: 122593.7113 | T19: 118402.0182
A20: OL1/SL1/PL1 | B20: ='[27]Forecast Summ by RC kWh'!C14+'[27]Forecast Summ by RC kWh'!C17 -> 668275032 | C20: =('[27]E-8 Parity Analysis (2)'!$C$22+'[27]E-8 Parity Analysis (2)'!$C$25)*1000 -> 113673252 | D20: 21058561.88 | E20: ='[23]2018 Capacity Calc'!T19 -> 641040 | F20: 232131.4261 | G20: ='[28]FORMS 42-6P, 42-7P '!W28 -> 475002 | H20: =T21+T22 -> 5450336.055 | I20: 1707239.303 | J20: 3241320.912 | L20: 32805631.57 | M20: 146478883.6 | P20: MET | Q20: 0.0009 | R20: ='[27]Forecast Summ by RC kWh'!C13 -> 91241144 | S20: 82117.0296 | T20: 79309.30493
A21: SL2, GSCU1 | B21: ='[27]Forecast Summ by RC kWh'!C18+'[27]Forecast Summ by RC kWh'!C8 -> 104537486 | C21: =('[27]E-8 Parity Analysis (2)'!$C$26+'[27]E-8 Parity Analysis (2)'!$C$16)*1000 -> 5909606.379 | D21: 3294166.342 | E21: ='[23]2018 Capacity Calc'!T20 -> 230237 | F21: 57826.61954 | G21: ='[28]FORMS 42-6P, 42-7P '!W29 -> 145832 | H21: =T23 -> 50481.58338 | I21: 231570.5756 | J21: 439653.977 | L21: =SUM(D21:J21) -> 4449768.097 | M21: 10359374.48 | P21: SL1/PL1 | Q21: 0.00843 | R21: ='[27]Forecast Summ by RC kWh'!C17 -> 570960264 | S21: 4813195.026 | T21: 4648623.481
P22: OL | Q22: 0.00853 | R22: ='[27]Forecast Summ by RC kWh'!C14 -> 97314768 | S22: 830094.971 | T22: 801712.5741
A23: Total | B23: =SUM(B8:B21) -> 107858876175 | C23: =SUM(C8:C21) -> 5967528922 | D23: =B33 -> 3398829388 | E23: =B34 -> 309753849.9 | F23: =B36+B37 -> 71594917.36 | G23: =B35 -> 191715913.4 | H23: =B38 -> 119138036.8 | I23: =B40 -> 250721646.6 | J23: =B39 -> 476013711.1 | L23: =B41 -> 4817767463 | M23: =SUM(M8:M21) -> 1.078529639e+10 | P23: SL2, GSCU1 | Q23: 0.0005 | R23: ='[27]Forecast Summ by RC kWh'!$C$18+'[27]Forecast Summ by RC kWh'!$C$8 -> 104537486 | S23: 52268.743 | T23: 50481.58338
D24: =SUM(D8:D21) -> 3398829388 | E24: 309753850 | F24: =SUM(F8:F21) -> 71594918.07 | G24: =SUM(G8:G21) -> 191715913 | H24: 119138036.8 | I24: 250721646.6 | J24: 476013711.1 | L24: =SUM(L8:L21) -> 4817767463 | R24: =SUM(R8:R23) -> 107858876175 | S24: =SUM(S8:S23) -> 123355786.6 | T24: =SUM(T8:T23) -> 119138036.8
T25: =B38 -> 119138036.8
P27: Conservation Calculations (to remove CDR/CILC Credits Reclassed to Base:
R28: 2018 Projected Energy Conservation Clause Revenue | S28: Removed CILC/CDR Credits reclassed to Base | T28: 2018 Projected Energy Conservation Clause Revenue for E-8
A29: Clause Revenue Requiremenets Provided by Jason Chin & Craig Martin: | P29: RS1/RTR1 | R29: ='[30]page 2& 3'!$W11 -> 75834361 | S29: =$S$45*(R29/$R$44) -> -35525468.34 | T29: =R29+S29 -> 40308892.66
P30: GS1/GST1 | R30: ='[30]page 2& 3'!$W12 -> 7531157 | S30: =$S$45*(R30/$R$44) -> -3528056.095 | T30: =R30+S30 -> 4003100.905
P31: GSD1/GSDT1/HLFT1 (21-499 kW)/SDTR 1A/SDTR 1B | R31: ='[30]page 2& 3'!$W13 -> 30693328 | S31: -14378638.36 | T31: 16314689.64
B32: 2018 Revenue Requirements (per NOI) | P32: OS2 | R32: ='[30]page 2& 3'!$W14 -> 11248 | S32: -5269.253444 | T32: 5978.746556
A33: Fuel | B33: ='[26]Summary of Clause Balances'!$C$2 -> 3398829388 | P33: GSLD1/GSLDT1/CS1/CST1/HLFT2 (500-1,999 kW)/SDTR 2A/SDTR 2B | R33: ='[30]page 2& 3'!$W15 -> 12438246 | S33: -5826837.711 | T33: 6611408.289
A34: Capacity | B34: ='[26]Summary of Clause Balances'!$C$3 -> 309753849.9 | P34: GSLD2/GSLDT2/CS2/CST2/HLFT3(2,000+ kW)/SDTR 3A/SDTR 3B | R34: ='[30]page 2& 3'!$W16 -> 2691118 | S34: -1260684.814 | T34: 1430433.186
A35: Environmental | B35: ='[26]Summary of Clause Balances'!$C$6 -> 191715913.4 | P35: GSLD3/GSLDT3/CS3/CST3 | R35: ='[30]page 2& 3'!$W17 -> 184816 | S35: -86579.1558 | T35: 98236.8442
A36: Conservation | B36: ='[26]Summary of Clause Balances'!$C$4 -> 134693723.3 | P36: SST1T | R36: ='[30]page 2& 3'!$W18 -> 13190 | S36: -6179.005417 | T36: 7010.994583
A37: CILC Credits reclassed to Base | B37: ='[26]Summary of Clause Balances'!$C$5 -> -63098805.93 | P37: SST1D1/SST1D2/SST1D3 | R37: ='[30]page 2& 3'!$W19 -> 85548 | S37: -40075.93293 | T37: 45472.06707
A38: Storm | B38: ='[26]Summary of Clause Balances'!$C$9 -> 119138036.8 | P38: CILC D/CILC G | R38: ='[30]page 2& 3'!$W20 -> 2990401 | S38: -1400887.337 | T38: 1589513.663
A39: Franchise Fees | B39: ='[26]Summary of Clause Balances'!$C$8 -> 476013711.1 | P39: CILC T | R39: ='[30]page 2& 3'!$W21 -> 1568713 | S39: -734881.4347 | T39: 833831.5653
A40: GRT | B40: ='[26]Summary of Clause Balances'!$C$7 -> 250721646.6 | P40: MET | R40: ='[30]page 2& 3'!$W22 -> 106091 | S40: -49699.53477 | T40: 56391.46523
B41: =SUM(B33:B40) -> 4817767463 | P41: OL1/SL1/PL1 | R41: ='[30]page 2& 3'!$W23 -> 436716 | S41: -204584.5739 | T41: 232131.4261
P42: SL2, GSCU1 | R42: ='[30]page 2& 3'!$W24 -> 108791 | S42: -50964.38046 | T42: 57826.61954
P44: Total | R44: =SUM(R29:R42) -> 134693724 | S44: =SUM(S29:S42) -> -63098805.93 | T44: =SUM(T29:T42) -> 71594918.07
S45: =B37 -> -63098805.93

Sheet Sheet1
